[Event "Titled Tuesday Blitz January 04 2022"]
[White "Seo, Jung Min"]
[Black "Babazada, Khazar"]
[WhiteFideId "1734687"]
[BlackFideId "13413554"]
[WhiteElo "2401"]
[BlackElo "2418"]
[Result "1/2-1/2"]
[Round "09"]
[TimeControl "180+1"]
[Date "2022.01.04"]
[WhiteClock "0:00:03"]
[BlackClock "0:00:23"]

1. e4 {[%clk 0:03:00]}  Nf6 {[%clk 0:02:59]} 2. e5 {[%clk 0:03:00]}  Nd5 {[%clk 0:02:58]} 3. d4 {[%clk 0:02:59]}  Nb6 {[%clk 0:02:59]} 4. c4 {[%clk 0:02:57]}  d6 {[%clk 0:03:00]} 5. exd6 {[%clk 0:02:56]}  cxd6 {[%clk 0:03:00]} 6. Be3 {[%clk 0:02:54]}  g6 {[%clk 0:03:01]} 7. Nc3 {[%clk 0:02:53]}  Bg7 {[%clk 0:03:02]} 8. h3 {[%clk 0:02:48]}  O-O {[%clk 0:03:02]} 9. Nf3 {[%clk 0:02:47]}  Bf5 {[%clk 0:03:01]} 10. Be2 {[%clk 0:02:46]}  d5 {[%clk 0:03:01]} 11. c5 {[%clk 0:02:44]}  Nc4 {[%clk 0:03:02]} 12. Bc1 {[%clk 0:02:44]}  Nc6 {[%clk 0:03:01]} 13. O-O {[%clk 0:02:41]}  b6 {[%clk 0:03:01]} 14. b3 {[%clk 0:02:41]}  N4a5 {[%clk 0:03:01]} 15. cxb6 {[%clk 0:02:33]}  axb6 {[%clk 0:03:02]} 16. Be3 {[%clk 0:02:31]}  Be4 {[%clk 0:02:58]} 17. Qd2 {[%clk 0:02:26]}  Bxf3 {[%clk 0:02:58]} 18. Bxf3 {[%clk 0:02:23]}  e6 {[%clk 0:02:59]} 19. Rfd1 {[%clk 0:02:19]}  Nb7 {[%clk 0:02:56]} 20. Rac1 {[%clk 0:02:13]}  Rc8 {[%clk 0:02:56]} 21. Nb5 {[%clk 0:02:12]}  Nd6 {[%clk 0:02:51]} 22. Nxd6 {[%clk 0:02:12]}  Qxd6 {[%clk 0:02:52]} 23. Be2 {[%clk 0:01:59]}  Ne7 {[%clk 0:02:51]} 24. Bd3 {[%clk 0:01:53]}  Qa3 {[%clk 0:02:50]} 25. h4 {[%clk 0:01:47]}  Nc6 {[%clk 0:02:49]} 26. Bb1 {[%clk 0:01:43]}  h5 {[%clk 0:02:47]} 27. g3 {[%clk 0:01:43]}  Rfe8 {[%clk 0:02:41]} 28. Rc3 {[%clk 0:01:42]}  Qb4 {[%clk 0:02:30]} 29. Rd3 {[%clk 0:01:35]}  Qxd2 {[%clk 0:02:25]} 30. R3xd2 {[%clk 0:01:35]}  Ne7 {[%clk 0:02:19]} 31. Rc2 {[%clk 0:01:26]}  Rxc2 {[%clk 0:02:19]} 32. Bxc2 {[%clk 0:01:26]}  Rc8 {[%clk 0:02:20]} 33. Bd3 {[%clk 0:01:25]}  Rc3 {[%clk 0:02:17]} 34. Kf1 {[%clk 0:01:21]}  Nc6 {[%clk 0:02:15]} 35. Bb1 {[%clk 0:01:14]}  Na7 {[%clk 0:02:14]} 36. Rd3 {[%clk 0:01:05]}  Rc8 {[%clk 0:02:06]} 37. Rd1 {[%clk 0:01:02]}  Nb5 {[%clk 0:02:04]} 38. Bd3 {[%clk 0:00:54]}  Nd6 {[%clk 0:01:56]} 39. Ke2 {[%clk 0:00:53]}  Kf8 {[%clk 0:01:56]} 40. Kd2 {[%clk 0:00:50]}  Ke7 {[%clk 0:01:56]} 41. a4 {[%clk 0:00:50]}  Nb7 {[%clk 0:01:38]} 42. Rc1 {[%clk 0:00:43]}  Rxc1 {[%clk 0:01:35]} 43. Kxc1 {[%clk 0:00:43]}  Nd6 {[%clk 0:01:35]} 44. Kc2 {[%clk 0:00:42]}  Kd7 {[%clk 0:01:33]} 45. Kc3 {[%clk 0:00:42]}  Kc6 {[%clk 0:01:33]} 46. b4 {[%clk 0:00:41]}  b5 {[%clk 0:01:32]} 47. a5 {[%clk 0:00:23]}  Nc4 {[%clk 0:01:31]} 48. Be2 {[%clk 0:00:14]}  Bf8 {[%clk 0:01:27]} 49. Bf4 {[%clk 0:00:11]}  Bg7 {[%clk 0:01:27]} 50. Be3 {[%clk 0:00:11]}  e5 {[%clk 0:01:22]} 51. Bxc4 {[%clk 0:00:10]}  bxc4 {[%clk 0:01:15]} 52. dxe5 {[%clk 0:00:10]}  Bxe5+ {[%clk 0:01:13]} 53. Bd4 {[%clk 0:00:10]}  f6 {[%clk 0:01:12]} 54. a6 {[%clk 0:00:09]}  Kc7 {[%clk 0:00:38]} 55. b5 {[%clk 0:00:08]}  Kc8 {[%clk 0:00:39]} 56. b6 {[%clk 0:00:08]}  Kb8 {[%clk 0:00:38]} 57. b7 {[%clk 0:00:05]}  Kc7 {[%clk 0:00:36]} 58. f4 {[%clk 0:00:03]}  Bxd4+ {[%clk 0:00:34]} 59. Kxd4 {[%clk 0:00:04]}  f5 {[%clk 0:00:32]} 60. Kc3 {[%clk 0:00:03]}  Kb8 {[%clk 0:00:32]} 61. Kb4 {[%clk 0:00:03]}  Ka7 {[%clk 0:00:32]} 62. Kc3 {[%clk 0:00:03]}  Kb8 {[%clk 0:00:26]} 63. Kd4 {[%clk 0:00:03]}  Kc7 {[%clk 0:00:24]} 64. Kc3 {[%clk 0:00:03]}  Kb8 {[%clk 0:00:23]} 1/2-1/2


[Site "https://www.chess.com"]

[Event "Titled Tuesday Blitz January 04 2022"]
[White "Smirnov, Timofey"]
[Black "Kucuksari, Kaan"]
[WhiteFideId "24176427"]
[BlackFideId "6380166"]
[WhiteElo "2320"]
[BlackElo "2305"]
[Result "1-0"]
[Round "09"]
[TimeControl "180+1"]
[Date "2022.01.04"]
[WhiteClock "0:00:04"]
[BlackClock "0:00:46"]

1. e4 {[%clk 0:01:14]}  c5 {[%clk 0:02:58]} 2. Nf3 {[%clk 0:01:10]}  e6 {[%clk 0:02:58]} 3. d4 {[%clk 0:01:10]}  cxd4 {[%clk 0:02:59]} 4. Nxd4 {[%clk 0:01:11]}  a6 {[%clk 0:03:00]} 5. Nc3 {[%clk 0:01:11]}  Qc7 {[%clk 0:03:01]} 6. Be2 {[%clk 0:01:11]}  Nf6 {[%clk 0:03:02]} 7. Be3 {[%clk 0:01:10]}  d6 {[%clk 0:03:01]} 8. g4 {[%clk 0:01:09]}  Nc6 {[%clk 0:03:00]} 9. g5 {[%clk 0:01:09]}  Nd7 {[%clk 0:03:01]} 10. Qd2 {[%clk 0:01:09]}  b5 {[%clk 0:03:00]} 11. O-O-O {[%clk 0:01:05]}  Bb7 {[%clk 0:03:01]} 12. Ndxb5 {[%clk 0:00:59]}  axb5 {[%clk 0:03:00]} 13. Nxb5 {[%clk 0:01:00]}  Qb8 {[%clk 0:03:00]} 14. Nxd6+ {[%clk 0:01:00]}  Bxd6 {[%clk 0:02:59]} 15. Qxd6 {[%clk 0:01:01]}  Qxd6 {[%clk 0:02:57]} 16. Rxd6 {[%clk 0:01:02]}  Ke7 {[%clk 0:02:57]} 17. Rhd1 {[%clk 0:01:00]}  Rhd8 {[%clk 0:02:55]} 18. a3 {[%clk 0:00:58]}  f6 {[%clk 0:02:40]} 19. Bb5 {[%clk 0:00:55]}  Nce5 {[%clk 0:02:37]} 20. f4 {[%clk 0:00:53]}  Ra5 {[%clk 0:02:31]} 21. gxf6+ {[%clk 0:00:24]}  gxf6 {[%clk 0:02:29]} 22. fxe5 {[%clk 0:00:24]}  Rxb5 {[%clk 0:02:02]} 23. exf6+ {[%clk 0:00:23]}  Kxf6 {[%clk 0:02:03]} 24. Rxd7 {[%clk 0:00:19]}  Rxd7 {[%clk 0:02:04]} 25. Rxd7 {[%clk 0:00:19]}  Bxe4 {[%clk 0:02:05]} 26. c4 {[%clk 0:00:18]}  Rb3 {[%clk 0:02:04]} 27. Bd4+ {[%clk 0:00:17]}  e5 {[%clk 0:02:02]} 28. Bc3 {[%clk 0:00:18]}  Rb8 {[%clk 0:01:53]} 29. Rd6+ {[%clk 0:00:16]}  Kf5 {[%clk 0:01:52]} 30. a4 {[%clk 0:00:16]}  Bf3 {[%clk 0:01:41]} 31. a5 {[%clk 0:00:16]}  e4 {[%clk 0:01:41]} 32. Kd2 {[%clk 0:00:16]}  Kf4 {[%clk 0:01:39]} 33. Rf6+ {[%clk 0:00:13]}  Kg5 {[%clk 0:01:39]} 34. a6 {[%clk 0:00:09]}  Rd8+ {[%clk 0:01:39]} 35. Ke3 {[%clk 0:00:08]}  Rd3+ {[%clk 0:01:39]} 36. Kf2 {[%clk 0:00:07]}  Bh1 {[%clk 0:01:27]} 37. Re6 {[%clk 0:00:06]}  Kf4 {[%clk 0:01:26]} 38. a7 {[%clk 0:00:03]}  Rd8 {[%clk 0:01:10]} 39. Rf6+ {[%clk 0:00:02]}  Kg5 {[%clk 0:01:10]} 40. Rb6 {[%clk 0:00:03]}  Kf4 {[%clk 0:01:10]} 41. Rb8 {[%clk 0:00:03]}  e3+ {[%clk 0:01:10]} 42. Ke1 {[%clk 0:00:03]}  Rd7 {[%clk 0:01:00]} 43. Rf8+ {[%clk 0:00:03]}  Ke4 {[%clk 0:01:00]} 44. a8=Q+ {[%clk 0:00:03]}  Kd3 {[%clk 0:01:01]} 45. Qxh1 {[%clk 0:00:03]}  Ra7 {[%clk 0:01:01]} 46. Qd5+ {[%clk 0:00:03]}  Kc2 {[%clk 0:01:02]} 47. Ke2 {[%clk 0:00:02]}  Ra1 {[%clk 0:01:03]} 48. Qd3+ {[%clk 0:00:02]}  Kb3 {[%clk 0:01:02]} 49. Bd4+ {[%clk 0:00:03]}  Ka2 {[%clk 0:01:03]} 50. Bxe3 {[%clk 0:00:03]}  Rc1 {[%clk 0:00:45]} 51. Ra8+ {[%clk 0:00:03]}  Kxb2 {[%clk 0:00:46]} 52. Bxc1+ {[%clk 0:00:03]}  Kxc1 {[%clk 0:00:45]} 53. Ra1+ {[%clk 0:00:04]}  Kb2 {[%clk 0:00:46]} 54. Rb1+ {[%clk 0:00:04]} 1-0


[Site "https://www.chess.com"]

[Event "Titled Tuesday Blitz January 04 2022"]
[White "Tanenbaum, Zachary"]
[Black "Jobava, Baadur"]
[WhiteFideId "2060850"]
[BlackFideId "13601520"]
[WhiteElo "2168"]
[BlackElo "2617"]
[Result "0-1"]
[Round "09"]
[TimeControl "180+1"]
[Date "2022.01.04"]
[WhiteClock "0:00:07"]
[BlackClock "0:02:09"]

1. e4 {[%clk 0:03:00]}  c6 {[%clk 0:03:00]} 2. d4 {[%clk 0:02:58]}  d5 {[%clk 0:03:01]} 3. exd5 {[%clk 0:02:59]}  cxd5 {[%clk 0:03:01]} 4. Bd3 {[%clk 0:03:00]}  Nf6 {[%clk 0:03:01]} 5. c3 {[%clk 0:03:00]}  Bg4 {[%clk 0:03:01]} 6. Qb3 {[%clk 0:03:00]}  Qc7 {[%clk 0:02:59]} 7. Bg5 {[%clk 0:03:00]}  e6 {[%clk 0:02:59]} 8. Nd2 {[%clk 0:03:00]}  h6 {[%clk 0:02:57]} 9. Bh4 {[%clk 0:03:01]}  Bd6 {[%clk 0:02:57]} 10. Ngf3 {[%clk 0:03:01]}  Nc6 {[%clk 0:02:56]} 11. Bg3 {[%clk 0:02:57]}  Bxg3 {[%clk 0:02:54]} 12. hxg3 {[%clk 0:02:58]}  O-O-O {[%clk 0:02:54]} 13. O-O-O {[%clk 0:02:49]}  Kb8 {[%clk 0:02:53]} 14. Kb1 {[%clk 0:02:49]}  Rc8 {[%clk 0:02:51]} 15. Rde1 {[%clk 0:02:38]}  Bxf3 {[%clk 0:02:48]} 16. Nxf3 {[%clk 0:02:38]}  Rhd8 {[%clk 0:02:48]} 17. Ne5 {[%clk 0:02:20]}  Rd6 {[%clk 0:02:48]} 18. f4 {[%clk 0:02:19]}  Na5 {[%clk 0:02:46]} 19. Qc2 {[%clk 0:01:57]}  Rb6 {[%clk 0:02:47]} 20. Ka1 {[%clk 0:01:52]}  Nc6 {[%clk 0:02:31]} 21. Qd2 {[%clk 0:01:39]}  Na5 {[%clk 0:02:23]} 22. g4 {[%clk 0:01:34]}  Ne8 {[%clk 0:02:23]} 23. g5 {[%clk 0:01:24]}  hxg5 {[%clk 0:02:21]} 24. fxg5 {[%clk 0:01:25]}  Nd6 {[%clk 0:02:22]} 25. Rh7 {[%clk 0:01:24]}  g6 {[%clk 0:02:07]} 26. Rf1 {[%clk 0:00:59]}  Nac4 {[%clk 0:02:08]} 27. Bxc4 {[%clk 0:00:40]}  Nxc4 {[%clk 0:02:06]} 28. Nxc4 {[%clk 0:00:40]}  Qxc4 {[%clk 0:02:06]} 29. Rfxf7 {[%clk 0:00:32]}  a5 {[%clk 0:02:06]} 30. a3 {[%clk 0:00:30]}  a4 {[%clk 0:02:06]} 31. Qf2 {[%clk 0:00:18]}  Ka7 {[%clk 0:02:04]} 32. Rf8 {[%clk 0:00:18]}  Rxf8 {[%clk 0:02:00]} 33. Qxf8 {[%clk 0:00:18]}  Qe2 {[%clk 0:02:01]} 34. Qb4 {[%clk 0:00:07]}  Qd1+ {[%clk 0:02:01]} 35. Ka2 {[%clk 0:00:08]}  Rxb4 {[%clk 0:02:01]} 36. cxb4 {[%clk 0:00:07]}  Qb3+ {[%clk 0:02:02]} 37. Kb1 {[%clk 0:00:07]}  Qd1+ {[%clk 0:02:03]} 38. Ka2 {[%clk 0:00:08]}  Qxd4 {[%clk 0:02:04]} 39. Rh3 {[%clk 0:00:07]}  Qc4+ {[%clk 0:02:04]} 40. Kb1 {[%clk 0:00:07]}  Qf1+ {[%clk 0:02:05]} 41. Ka2 {[%clk 0:00:08]}  Qxg2 {[%clk 0:02:05]} 42. Rc3 {[%clk 0:00:08]}  Qxg5 {[%clk 0:02:05]} 43. b5 {[%clk 0:00:08]}  d4 {[%clk 0:02:05]} 44. Rc4 {[%clk 0:00:08]}  Qd5 {[%clk 0:02:06]} 45. b6+ {[%clk 0:00:08]}  Kxb6 {[%clk 0:02:05]} 46. b3 {[%clk 0:00:08]}  axb3+ {[%clk 0:02:06]} 47. Kxb3 {[%clk 0:00:08]}  d3 {[%clk 0:02:07]} 48. a4 {[%clk 0:00:07]}  d2 {[%clk 0:02:07]} 49. a5+ {[%clk 0:00:07]}  Kb5 {[%clk 0:02:07]} 50. a6 {[%clk 0:00:06]}  Qxc4+ {[%clk 0:02:08]} 51. Ka3 {[%clk 0:00:06]}  d1=Q {[%clk 0:02:09]} 52. axb7 {[%clk 0:00:07]}  Qdb3# {[%clk 0:02:09]} 0-1


[Site "https://www.chess.com"]

[Event "Titled Tuesday Blitz January 04 2022"]
[White "Tsydypov, Zhamsaran"]
[Black "Theodorou, Nikolas"]
[WhiteFideId "4108566"]
[BlackFideId "4262875"]
[WhiteElo "2614"]
[BlackElo "2472"]
[Result "1-0"]
[Round "09"]
[TimeControl "180+1"]
[Date "2022.01.04"]
[WhiteClock "0:00:37"]
[BlackClock "0:00:02"]

1. e4 {[%clk 0:02:59]}  e5 {[%clk 0:02:51]} 2. Nf3 {[%clk 0:02:58]}  Nc6 {[%clk 0:02:50]} 3. d4 {[%clk 0:02:58]}  exd4 {[%clk 0:02:50]} 4. Nxd4 {[%clk 0:02:58]}  Bb4+ {[%clk 0:02:50]} 5. c3 {[%clk 0:02:58]}  Bc5 {[%clk 0:02:51]} 6. Nf5 {[%clk 0:02:58]}  d5 {[%clk 0:02:46]} 7. Nxg7+ {[%clk 0:02:57]}  Kf8 {[%clk 0:02:47]} 8. Nh5 {[%clk 0:02:57]}  Qh4 {[%clk 0:02:29]} 9. Ng3 {[%clk 0:02:56]}  Nf6 {[%clk 0:02:23]} 10. exd5 {[%clk 0:02:56]}  Ne5 {[%clk 0:02:23]} 11. Be3 {[%clk 0:02:53]}  Bxe3 {[%clk 0:02:18]} 12. fxe3 {[%clk 0:02:53]}  Rg8 {[%clk 0:02:18]} 13. Qd4 {[%clk 0:02:51]}  Nfg4 {[%clk 0:02:02]} 14. Nd2 {[%clk 0:02:47]}  Qh6 {[%clk 0:02:00]} 15. O-O-O {[%clk 0:02:36]}  Nxe3 {[%clk 0:01:49]} 16. Qxe5 {[%clk 0:02:30]}  Nxd1 {[%clk 0:01:49]} 17. Kxd1 {[%clk 0:02:30]}  Bg4+ {[%clk 0:01:50]} 18. Kc2 {[%clk 0:02:12]}  Rg5 {[%clk 0:01:47]} 19. Qh8+ {[%clk 0:02:08]}  Rg8 {[%clk 0:01:43]} 20. Qd4 {[%clk 0:02:07]}  Rd8 {[%clk 0:01:35]} 21. Bd3 {[%clk 0:02:06]}  c6 {[%clk 0:01:31]} 22. Qb4+ {[%clk 0:02:03]}  Qd6 {[%clk 0:01:29]} 23. Qxd6+ {[%clk 0:02:03]}  Rxd6 {[%clk 0:01:30]} 24. Nde4 {[%clk 0:02:01]}  Rdg6 {[%clk 0:01:24]} 25. Rf1 {[%clk 0:01:59]}  R8g7 {[%clk 0:01:04]} 26. Nf6 {[%clk 0:01:49]}  Rh6 {[%clk 0:01:05]} 27. d6 {[%clk 0:01:47]}  Rxh2 {[%clk 0:00:56]} 28. d7 {[%clk 0:01:14]}  Rxg2+ {[%clk 0:00:41]} 29. Kc1 {[%clk 0:01:03]}  Bxd7 {[%clk 0:00:22]} 30. Nxd7+ {[%clk 0:01:02]}  Ke8 {[%clk 0:00:23]} 31. Nf6+ {[%clk 0:01:02]}  Kd8 {[%clk 0:00:24]} 32. Nfh5 {[%clk 0:00:59]}  Rg5 {[%clk 0:00:13]} 33. Rxf7 {[%clk 0:00:58]}  Re5 {[%clk 0:00:14]} 34. Be4 {[%clk 0:00:53]}  Rh2 {[%clk 0:00:07]} 35. Rxb7 {[%clk 0:00:50]}  Ra5 {[%clk 0:00:07]} 36. a3 {[%clk 0:00:49]}  c5 {[%clk 0:00:02]} 37. Rxh7 {[%clk 0:00:48]}  c4 {[%clk 0:00:02]} 38. Rb7 {[%clk 0:00:43]}  a6 {[%clk 0:00:02]} 39. Kb1 {[%clk 0:00:40]}  Rg5 {[%clk 0:00:01]} 40. Rb4 {[%clk 0:00:39]}  Rf2 {[%clk 0:00:01]} 41. Rxc4 {[%clk 0:00:37]}  a5 {[%clk 0:00:02]} 42. Rd4+ {[%clk 0:00:37]}  Kc7 {[%clk 0:00:02]} 43. Rd5 {[%clk 0:00:37]} 1-0


[Site "https://www.chess.com"]

[Event "Titled Tuesday Blitz January 04 2022"]
[White "Yoo, Christopher Woojin"]
[Black "Sargsyan, Anna M."]
[WhiteFideId "30909694"]
[BlackFideId "13308130"]
[WhiteElo "2105"]
[BlackElo "2271"]
[Result "1/2-1/2"]
[Round "09"]
[TimeControl "180+1"]
[Date "2022.01.04"]
[WhiteClock "0:00:06"]
[BlackClock "0:00:11"]

1. e4 {[%clk 0:03:00]}  e5 {[%clk 0:02:57]} 2. Nf3 {[%clk 0:03:01]}  Nc6 {[%clk 0:02:57]} 3. Bb5 {[%clk 0:03:01]}  a6 {[%clk 0:02:58]} 4. Ba4 {[%clk 0:03:01]}  Nf6 {[%clk 0:02:59]} 5. d4 {[%clk 0:03:02]}  exd4 {[%clk 0:02:53]} 6. O-O {[%clk 0:03:00]}  b5 {[%clk 0:02:51]} 7. Bb3 {[%clk 0:02:55]}  Be7 {[%clk 0:02:49]} 8. e5 {[%clk 0:02:54]}  Ne4 {[%clk 0:02:49]} 9. Bd5 {[%clk 0:02:51]}  Nc5 {[%clk 0:02:48]} 10. Nxd4 {[%clk 0:02:50]}  Bb7 {[%clk 0:02:47]} 11. Nf5 {[%clk 0:02:48]}  O-O {[%clk 0:02:44]} 12. Qg4 {[%clk 0:02:32]}  g6 {[%clk 0:02:43]} 13. Re1 {[%clk 0:02:29]}  Ne6 {[%clk 0:02:38]} 14. Nc3 {[%clk 0:02:15]}  Kh8 {[%clk 0:02:36]} 15. Nxe7 {[%clk 0:01:58]}  Qxe7 {[%clk 0:02:35]} 16. Bh6 {[%clk 0:01:46]}  Rfe8 {[%clk 0:02:24]} 17. Ne4 {[%clk 0:01:19]}  Nxe5 {[%clk 0:02:20]} 18. Qg3 {[%clk 0:01:19]}  Nc6 {[%clk 0:02:10]} 19. Qc3+ {[%clk 0:01:16]}  f6 {[%clk 0:02:05]} 20. Qxf6+ {[%clk 0:00:57]}  Qxf6 {[%clk 0:02:01]} 21. Nxf6 {[%clk 0:00:58]}  Red8 {[%clk 0:01:34]} 22. Nxd7 {[%clk 0:00:26]}  Ned4 {[%clk 0:01:30]} 23. Bxc6 {[%clk 0:00:20]}  Bxc6 {[%clk 0:01:06]} 24. Ne5 {[%clk 0:00:19]}  Bd5 {[%clk 0:01:07]} 25. Bg5 {[%clk 0:00:20]}  Nxc2 {[%clk 0:01:04]} 26. Bxd8 {[%clk 0:00:17]}  Rxd8 {[%clk 0:01:03]} 27. a4 {[%clk 0:00:04]}  Nxe1 {[%clk 0:00:56]} 28. Rxe1 {[%clk 0:00:04]}  bxa4 {[%clk 0:00:56]} 29. Rd1 {[%clk 0:00:03]}  Kg7 {[%clk 0:00:55]} 30. Nc6 {[%clk 0:00:03]}  Rd6 {[%clk 0:00:51]} 31. Nb4 {[%clk 0:00:04]}  Bb7 {[%clk 0:00:38]} 32. Rc1 {[%clk 0:00:04]}  a5 {[%clk 0:00:34]} 33. Na2 {[%clk 0:00:03]}  c5 {[%clk 0:00:30]} 34. Nc3 {[%clk 0:00:02]}  Bc6 {[%clk 0:00:30]} 35. f3 {[%clk 0:00:02]}  Rd2 {[%clk 0:00:30]} 36. Ra1 {[%clk 0:00:03]}  Rxb2 {[%clk 0:00:26]} 37. Nxa4 {[%clk 0:00:03]}  Rc2 {[%clk 0:00:21]} 38. Nb6 {[%clk 0:00:02]}  a4 {[%clk 0:00:11]} 39. Nxa4 {[%clk 0:00:02]}  Bxa4 {[%clk 0:00:10]} 40. Rxa4 {[%clk 0:00:02]}  c4 {[%clk 0:00:11]} 41. Ra7+ {[%clk 0:00:02]}  Kh6 {[%clk 0:00:11]} 42. Rc7 {[%clk 0:00:02]}  c3 {[%clk 0:00:08]} 43. h4 {[%clk 0:00:03]}  g5 {[%clk 0:00:06]} 44. Rc6+ {[%clk 0:00:03]}  Kh5 {[%clk 0:00:06]} 45. hxg5 {[%clk 0:00:02]}  Kxg5 {[%clk 0:00:06]} 46. Rc4 {[%clk 0:00:03]}  h5 {[%clk 0:00:04]} 47. Kh2 {[%clk 0:00:03]}  Kf5 {[%clk 0:00:05]} 48. Kh3 {[%clk 0:00:04]}  Ke5 {[%clk 0:00:05]} 49. g4 {[%clk 0:00:03]}  hxg4+ {[%clk 0:00:05]} 50. fxg4 {[%clk 0:00:04]}  Kd5 {[%clk 0:00:06]} 51. Rc8 {[%clk 0:00:04]}  Rc1 {[%clk 0:00:06]} 52. g5 {[%clk 0:00:04]}  Kd4 {[%clk 0:00:06]} 53. Kg2 {[%clk 0:00:03]}  Re1 {[%clk 0:00:06]} 54. Kg3 {[%clk 0:00:02]}  Rg1+ {[%clk 0:00:06]} 55. Kf4 {[%clk 0:00:02]}  Kd3 {[%clk 0:00:06]} 56. Kf5 {[%clk 0:00:03]}  c2 {[%clk 0:00:07]} 57. g6 {[%clk 0:00:04]}  c1=Q {[%clk 0:00:07]} 58. Rxc1 {[%clk 0:00:04]}  Rxc1 {[%clk 0:00:08]} 59. g7 {[%clk 0:00:05]}  Rg1 {[%clk 0:00:08]} 60. Kf6 {[%clk 0:00:05]}  Ke4 {[%clk 0:00:09]} 61. Kf7 {[%clk 0:00:05]}  Rf1+ {[%clk 0:00:09]} 62. Kg6 {[%clk 0:00:05]}  Rg1+ {[%clk 0:00:09]} 63. Kf7 {[%clk 0:00:06]}  Ke5 {[%clk 0:00:10]} 64. g8=Q {[%clk 0:00:06]}  Rxg8 {[%clk 0:00:11]} 65. Kxg8 {[%clk 0:00:06]} 1/2-1/2


[Site "https://www.chess.com"]

[Event "Titled Tuesday Blitz January 04 2022"]
[White "Zverev, Lev"]
[Black "Harutjunyan, Gevorg"]
[WhiteFideId "24250775"]
[BlackFideId "13300873"]
[WhiteElo "2156"]
[BlackElo "2498"]
[Result "0-1"]
[Round "09"]
[TimeControl "180+1"]
[Date "2022.01.04"]
[WhiteClock "0:00:01"]
[BlackClock "0:00:06"]

1. e4 {[%clk 0:03:00]}  c6 {[%clk 0:03:00]} 2. d4 {[%clk 0:03:00]}  d5 {[%clk 0:03:00]} 3. e5 {[%clk 0:03:00]}  Bf5 {[%clk 0:03:00]} 4. Nf3 {[%clk 0:03:01]}  e6 {[%clk 0:03:01]} 5. Be2 {[%clk 0:03:00]}  Ne7 {[%clk 0:03:01]} 6. O-O {[%clk 0:02:58]}  c5 {[%clk 0:03:02]} 7. dxc5 {[%clk 0:02:58]}  Nec6 {[%clk 0:03:02]} 8. c4 {[%clk 0:02:57]}  d4 {[%clk 0:03:01]} 9. Bd3 {[%clk 0:02:55]}  Bxd3 {[%clk 0:02:45]} 10. Qxd3 {[%clk 0:02:56]}  Bxc5 {[%clk 0:02:44]} 11. Bg5 {[%clk 0:02:52]}  Be7 {[%clk 0:02:32]} 12. Bxe7 {[%clk 0:02:51]}  Qxe7 {[%clk 0:02:33]} 13. Nbd2 {[%clk 0:02:44]}  Nd7 {[%clk 0:02:32]} 14. Nxd4 {[%clk 0:02:36]}  Ndxe5 {[%clk 0:02:25]} 15. Qc3 {[%clk 0:02:32]}  O-O {[%clk 0:02:22]} 16. Nxc6 {[%clk 0:02:27]}  Nxc6 {[%clk 0:02:22]} 17. Rad1 {[%clk 0:02:28]}  Rac8 {[%clk 0:02:21]} 18. Ne4 {[%clk 0:02:27]}  e5 {[%clk 0:02:11]} 19. Nd6 {[%clk 0:02:26]}  Rc7 {[%clk 0:02:11]} 20. Rfe1 {[%clk 0:02:11]}  Nd4 {[%clk 0:02:11]} 21. Ne4 {[%clk 0:01:55]}  Rfc8 {[%clk 0:02:07]} 22. c5 {[%clk 0:01:52]}  Qe6 {[%clk 0:01:53]} 23. b4 {[%clk 0:01:41]}  Qxa2 {[%clk 0:01:49]} 24. Nd6 {[%clk 0:01:29]}  Ne2+ {[%clk 0:01:44]} 25. Rxe2 {[%clk 0:01:29]}  Qxe2 {[%clk 0:01:45]} 26. Re1 {[%clk 0:01:30]}  Qa2 {[%clk 0:01:11]} 27. Nxc8 {[%clk 0:01:26]}  Rxc8 {[%clk 0:01:11]} 28. Qxe5 {[%clk 0:01:26]}  h6 {[%clk 0:01:08]} 29. Qd4 {[%clk 0:01:21]}  a5 {[%clk 0:00:53]} 30. b5 {[%clk 0:01:19]}  Qc2 {[%clk 0:00:50]} 31. c6 {[%clk 0:01:03]}  bxc6 {[%clk 0:00:48]} 32. b6 {[%clk 0:01:03]}  Qb3 {[%clk 0:00:30]} 33. h4 {[%clk 0:00:22]}  Rb8 {[%clk 0:00:29]} 34. h5 {[%clk 0:00:16]}  a4 {[%clk 0:00:27]} 35. Re3 {[%clk 0:00:15]}  Qd5 {[%clk 0:00:23]} 36. Qxa4 {[%clk 0:00:10]}  Rxb6 {[%clk 0:00:12]} 37. Re8+ {[%clk 0:00:10]}  Kh7 {[%clk 0:00:13]} 38. Qc2+ {[%clk 0:00:11]}  f5 {[%clk 0:00:13]} 39. f4 {[%clk 0:00:09]}  Qd4+ {[%clk 0:00:12]} 40. Kh1 {[%clk 0:00:05]}  Qxf4 {[%clk 0:00:11]} 41. Qd1 {[%clk 0:00:01]}  Rb4 {[%clk 0:00:08]} 42. Kg1 {[%clk 0:00:01]}  Rc4 {[%clk 0:00:06]} 43. Qd8 {[%clk 0:00:01]}  Rc1+ {[%clk 0:00:06]} 0-1


[Site "https://www.chess.com"]

[Event "Titled Tuesday Blitz January 04 2022"]
[White "Aggelis, Nikolaos"]
[Black "Yoo, Christopher Woojin"]
[WhiteFideId "4213220"]
[BlackFideId "30909694"]
[WhiteElo "2154"]
[BlackElo "2105"]
[Result "0-1"]
[Round "10"]
[TimeControl "180+1"]
[Date "2022.01.04"]
[WhiteClock "0:00:10"]
[BlackClock "0:00:06"]

1. d4 {[%clk 0:02:59]}  Nf6 {[%clk 0:02:55]} 2. g3 {[%clk 0:02:58]}  d5 {[%clk 0:02:55]} 3. Nf3 {[%clk 0:02:57]}  e6 {[%clk 0:02:55]} 4. Bg2 {[%clk 0:02:56]}  Be7 {[%clk 0:02:55]} 5. O-O {[%clk 0:02:57]}  O-O {[%clk 0:02:56]} 6. c4 {[%clk 0:02:57]}  dxc4 {[%clk 0:02:56]} 7. Qc2 {[%clk 0:02:57]}  b5 {[%clk 0:02:56]} 8. a4 {[%clk 0:02:56]}  b4 {[%clk 0:02:56]} 9. Nbd2 {[%clk 0:02:56]}  Bb7 {[%clk 0:02:51]} 10. Nxc4 {[%clk 0:02:56]}  c5 {[%clk 0:02:51]} 11. dxc5 {[%clk 0:02:51]}  Be4 {[%clk 0:02:51]} 12. Qb3 {[%clk 0:02:50]}  Bxc5 {[%clk 0:02:51]} 13. Be3 {[%clk 0:02:49]}  Bxe3 {[%clk 0:02:43]} 14. Qxe3 {[%clk 0:02:48]}  Nc6 {[%clk 0:02:40]} 15. Rfd1 {[%clk 0:02:46]}  Qe7 {[%clk 0:02:40]} 16. Nfe5 {[%clk 0:02:23]}  Bxg2 {[%clk 0:02:38]} 17. Kxg2 {[%clk 0:02:22]}  Rfc8 {[%clk 0:02:38]} 18. Rac1 {[%clk 0:02:14]}  Nxe5 {[%clk 0:01:56]} 19. Nxe5 {[%clk 0:02:10]}  Qb7+ {[%clk 0:01:57]} 20. Qf3 {[%clk 0:01:59]}  Nd5 {[%clk 0:01:57]} 21. Nc4 {[%clk 0:01:48]}  Qa6 {[%clk 0:01:54]} 22. Ne5 {[%clk 0:01:45]}  Qb7 {[%clk 0:01:43]} 23. Nc4 {[%clk 0:01:44]}  Rc7 {[%clk 0:00:56]} 24. Nd6 {[%clk 0:01:35]}  Qb6 {[%clk 0:00:55]} 25. Nc4 {[%clk 0:01:10]}  Qa6 {[%clk 0:00:45]} 26. Ne5 {[%clk 0:01:06]}  Qd6 {[%clk 0:00:40]} 27. Nc4 {[%clk 0:00:59]}  Qe7 {[%clk 0:00:36]} 28. e4 {[%clk 0:00:53]}  Nf6 {[%clk 0:00:31]} 29. e5 {[%clk 0:00:53]}  Nd5 {[%clk 0:00:31]} 30. Ne3 {[%clk 0:00:48]}  Nxe3+ {[%clk 0:00:26]} 31. Qxe3 {[%clk 0:00:49]}  Rac8 {[%clk 0:00:23]} 32. Qxa7 {[%clk 0:00:39]}  h5 {[%clk 0:00:12]} 33. Rxc7 {[%clk 0:00:36]}  Rxc7 {[%clk 0:00:13]} 34. Qd4 {[%clk 0:00:35]}  Rc2 {[%clk 0:00:09]} 35. h4 {[%clk 0:00:24]}  Qb7+ {[%clk 0:00:07]} 36. Kg1 {[%clk 0:00:22]}  Qf3 {[%clk 0:00:06]} 37. Rd2 {[%clk 0:00:19]}  Rc1+ {[%clk 0:00:06]} 38. Kh2 {[%clk 0:00:10]}  Rh1# {[%clk 0:00:06]} 0-1


[Site "https://www.chess.com"]